[Event "FIDE World Rapid Chess Championship 2021"]
[White "Kosakowski, Jakub"]
[Black "Jumabayev, Rinat"]
[WhiteFideId "1185080"]
[BlackFideId "13702661"]
[WhiteElo "2304"]
[BlackElo "2562"]
[Result "1/2-1/2"]
[Round "01"]
[TimeControl "900+10"]
[Date "2021.12.26"]
[WhiteClock "0:00:44"]
[BlackClock "0:00:20"]

1. e4 {[%clk 0:15:17]}  e6 {[%clk 0:15:18]} 2. d4 {[%clk 0:15:18]}  d5 {[%clk 0:15:17]} 3. Nd2 {[%clk 0:15:25]}  c5 {[%clk 0:15:24]} 4. Ngf3 {[%clk 0:15:29]}  cxd4 {[%clk 0:15:23]} 5. Nxd4 {[%clk 0:15:23]}  Nf6 {[%clk 0:15:29]} 6. exd5 {[%clk 0:15:14]}  a6 {[%clk 0:15:37]} 7. Be2 {[%clk 0:13:33]}  Nxd5 {[%clk 0:12:52]} 8. N2f3 {[%clk 0:13:15]}  Nd7 {[%clk 0:12:34]} 9. O-O {[%clk 0:13:17]}  Qc7 {[%clk 0:12:41]} 10. Re1 {[%clk 0:12:56]}  Bc5 {[%clk 0:11:16]} 11. a3 {[%clk 0:07:31]}  O-O {[%clk 0:11:14]} 12. c4 {[%clk 0:07:37]}  Nf4 {[%clk 0:11:14]} 13. b4 {[%clk 0:07:38]}  Be7 {[%clk 0:09:37]} 14. Bf1 {[%clk 0:06:46]}  b6 {[%clk 0:09:29]} 15. g3 {[%clk 0:05:03]}  Ng6 {[%clk 0:09:36]} 16. h4 {[%clk 0:05:09]}  Bb7 {[%clk 0:07:45]} 17. Bg2 {[%clk 0:05:18]}  Rfd8 {[%clk 0:07:20]} 18. Qe2 {[%clk 0:05:17]}  Rac8 {[%clk 0:05:53]} 19. h5 {[%clk 0:05:10]}  Ngf8 {[%clk 0:05:00]} 20. Bf1 {[%clk 0:04:11]}  Bf6 {[%clk 0:04:42]} 21. Bb2 {[%clk 0:04:08]}  e5 {[%clk 0:04:46]} 22. Nf5 {[%clk 0:04:08]}  e4 {[%clk 0:04:39]} 23. Bxf6 {[%clk 0:03:25]}  Nxf6 {[%clk 0:04:47]} 24. N3h4 {[%clk 0:03:17]}  h6 {[%clk 0:04:05]} 25. Qb2 {[%clk 0:03:12]}  N8h7 {[%clk 0:03:52]} 26. Be2 {[%clk 0:02:17]}  e3 {[%clk 0:02:27]} 27. Nxe3 {[%clk 0:01:59]}  Ng5 {[%clk 0:02:36]} 28. Bf1 {[%clk 0:01:59]}  Be4 {[%clk 0:01:07]} 29. Rad1 {[%clk 0:01:44]}  Nxh5 {[%clk 0:01:00]} 30. f4 {[%clk 0:00:56]}  Nxf4 {[%clk 0:00:53]} 31. gxf4 {[%clk 0:00:59]}  Qxf4 {[%clk 0:01:01]} 32. Qf2 {[%clk 0:00:13]}  Qxh4 {[%clk 0:01:05]} 33. Qxh4 {[%clk 0:00:22]}  Nf3+ {[%clk 0:01:14]} 34. Kf2 {[%clk 0:00:31]}  Nxh4 {[%clk 0:01:23]} 35. Nd5 {[%clk 0:00:18]}  Bxd5 {[%clk 0:01:26]} 36. cxd5 {[%clk 0:00:27]}  Rc2+ {[%clk 0:01:15]} 37. Re2 {[%clk 0:00:19]}  Rc3 {[%clk 0:00:55]} 38. d6 {[%clk 0:00:23]}  Kf8 {[%clk 0:00:53]} 39. d7 {[%clk 0:00:18]}  Nf5 {[%clk 0:00:36]} 40. Re5 {[%clk 0:00:14]}  Rc2+ {[%clk 0:00:20]} 41. Kf3 {[%clk 0:00:13]}  Nh4+ {[%clk 0:00:20]} 42. Kg3 {[%clk 0:00:19]}  Ng6 {[%clk 0:00:27]} 43. Re3 {[%clk 0:00:25]}  Rc7 {[%clk 0:00:29]} 44. Bh3 {[%clk 0:00:24]}  f6 {[%clk 0:00:31]} 45. Rd6 {[%clk 0:00:23]}  Ne5 {[%clk 0:00:32]} 46. Rxb6 {[%clk 0:00:26]}  Nc4 {[%clk 0:00:30]} 47. Rc3 {[%clk 0:00:35]}  Nxb6 {[%clk 0:00:26]} 48. Rxc7 {[%clk 0:00:43]}  Ke7 {[%clk 0:00:32]} 49. Ra7 {[%clk 0:00:46]}  Nxd7 {[%clk 0:00:37]} 50. Rxa6 {[%clk 0:00:53]}  Ne5 {[%clk 0:00:44]} 51. Ra7+ {[%clk 0:00:29]}  Kf8 {[%clk 0:00:52]} 52. b5 {[%clk 0:00:32]}  Rd3+ {[%clk 0:00:58]} 53. Kg2 {[%clk 0:00:29]}  Rb3 {[%clk 0:00:40]} 54. a4 {[%clk 0:00:36]}  Nd3 {[%clk 0:00:40]} 55. Bf5 {[%clk 0:00:24]}  Nf4+ {[%clk 0:00:27]} 56. Kf2 {[%clk 0:00:32]}  h5 {[%clk 0:00:27]} 57. Ra8+ {[%clk 0:00:25]}  Ke7 {[%clk 0:00:36]} 58. Ra7+ {[%clk 0:00:34]}  Kd6 {[%clk 0:00:39]} 59. Rxg7 {[%clk 0:00:42]}  h4 {[%clk 0:00:43]} 60. Rh7 {[%clk 0:00:18]}  h3 {[%clk 0:00:47]} 61. b6 {[%clk 0:00:20]}  Ke5 {[%clk 0:00:43]} 62. Bc8 {[%clk 0:00:16]}  Rb2+ {[%clk 0:00:49]} 63. Kg3 {[%clk 0:00:20]}  Rxb6 {[%clk 0:00:51]} 64. Re7+ {[%clk 0:00:18]}  Kd6 {[%clk 0:00:50]} 65. Rd7+ {[%clk 0:00:27]}  Ke5 {[%clk 0:00:40]} 66. Re7+ {[%clk 0:00:36]}  Kd6 {[%clk 0:00:25]} 67. Rd7+ {[%clk 0:00:44]}  Ke5 {[%clk 0:00:20]} 1/2-1/2


[Site "http://www.Chess.com"]

[Event "FIDE World Rapid Chess Championship 2021"]
[White "Lima, Darcy"]
[Black "Harikrishna, Pentala"]
[WhiteFideId "2100045"]
[BlackFideId "5007003"]
[WhiteElo "2505"]
[BlackElo "2705"]
[Result "1-0"]
[Round "01"]
[TimeControl "900+10"]
[Date "2021.12.26"]
[WhiteClock "0:00:53"]
[BlackClock "0:00:46"]

1. e4 {[%clk 0:15:17]}  e6 {[%clk 0:15:18]} 2. d4 {[%clk 0:15:22]}  d5 {[%clk 0:15:27]} 3. exd5 {[%clk 0:15:12]}  exd5 {[%clk 0:15:35]} 4. Nf3 {[%clk 0:15:20]}  Nf6 {[%clk 0:15:32]} 5. h3 {[%clk 0:15:17]}  Bd6 {[%clk 0:14:42]} 6. c4 {[%clk 0:15:11]}  O-O {[%clk 0:14:25]} 7. c5 {[%clk 0:14:20]}  Re8+ {[%clk 0:14:28]} 8. Be2 {[%clk 0:14:29]}  Bf8 {[%clk 0:14:35]} 9. O-O {[%clk 0:14:32]}  b6 {[%clk 0:14:43]} 10. cxb6 {[%clk 0:14:35]}  axb6 {[%clk 0:14:50]} 11. Nc3 {[%clk 0:14:42]}  h6 {[%clk 0:13:45]} 12. Bf4 {[%clk 0:12:38]}  c6 {[%clk 0:13:40]} 13. Ne5 {[%clk 0:12:29]}  Bb7 {[%clk 0:13:09]} 14. Re1 {[%clk 0:12:04]}  b5 {[%clk 0:12:58]} 15. a3 {[%clk 0:11:58]}  Nbd7 {[%clk 0:13:04]} 16. Bd3 {[%clk 0:11:27]}  Nb6 {[%clk 0:12:56]} 17. Rb1 {[%clk 0:09:51]}  Nc4 {[%clk 0:12:47]} 18. Bc2 {[%clk 0:09:54]}  Nd6 {[%clk 0:09:06]} 19. Qd3 {[%clk 0:08:47]}  Nde4 {[%clk 0:09:14]} 20. Nxe4 {[%clk 0:08:04]}  dxe4 {[%clk 0:09:11]} 21. Rxe4 {[%clk 0:07:41]}  c5 {[%clk 0:09:07]} 22. Ree1 {[%clk 0:07:07]}  Qxd4 {[%clk 0:07:55]} 23. Qxd4 {[%clk 0:06:54]}  cxd4 {[%clk 0:08:03]} 24. Rbd1 {[%clk 0:06:57]}  Rad8 {[%clk 0:06:37]} 25. Bb3 {[%clk 0:06:31]}  Bd5 {[%clk 0:06:18]} 26. Bxd5 {[%clk 0:06:29]}  Nxd5 {[%clk 0:06:09]} 27. Bg3 {[%clk 0:05:13]}  Nb6 {[%clk 0:06:06]} 28. Nd3 {[%clk 0:04:36]}  Nc4 {[%clk 0:05:59]} 29. Kf1 {[%clk 0:04:21]}  g5 {[%clk 0:04:49]} 30. Bc7 {[%clk 0:02:46]}  Rxe1+ {[%clk 0:04:06]} 31. Rxe1 {[%clk 0:02:45]}  Rd7 {[%clk 0:04:12]} 32. Bb8 {[%clk 0:02:38]}  Be7 {[%clk 0:03:14]} 33. Ke2 {[%clk 0:02:31]}  f6 {[%clk 0:02:51]} 34. g4 {[%clk 0:02:22]}  Kf7 {[%clk 0:02:31]} 35. Kd1 {[%clk 0:02:07]}  Rd8 {[%clk 0:02:39]} 36. Bg3 {[%clk 0:02:14]}  Rd5 {[%clk 0:01:54]} 37. Kc2 {[%clk 0:01:58]}  Bd8 {[%clk 0:01:17]} 38. Re2 {[%clk 0:01:50]}  Bb6 {[%clk 0:01:12]} 39. Kb3 {[%clk 0:01:12]}  f5 {[%clk 0:00:56]} 40. Be5 {[%clk 0:01:15]}  f4 {[%clk 0:00:56]} 41. Kc2 {[%clk 0:01:08]}  Ba5 {[%clk 0:00:53]} 42. b4 {[%clk 0:01:14]}  Bb6 {[%clk 0:00:49]} 43. Kb3 {[%clk 0:01:20]}  Ne3 {[%clk 0:00:33]} 44. a4 {[%clk 0:01:14]}  bxa4+ {[%clk 0:00:40]} 45. Kxa4 {[%clk 0:01:23]}  Nd1 {[%clk 0:00:49]} 46. Kb3 {[%clk 0:01:26]}  Nc3 {[%clk 0:00:53]} 47. Re1 {[%clk 0:01:34]}  f3 {[%clk 0:00:52]} 48. Ra1 {[%clk 0:01:38]}  Ne4 {[%clk 0:00:59]} 49. Ra6 {[%clk 0:01:35]}  Bd8 {[%clk 0:00:59]} 50. Rxh6 {[%clk 0:01:41]}  Nxf2 {[%clk 0:01:05]} 51. Nxf2 {[%clk 0:01:43]}  Rxe5 {[%clk 0:01:14]} 52. Nd3 {[%clk 0:01:31]}  Re2 {[%clk 0:01:00]} 53. Ra6 {[%clk 0:01:11]}  Rh2 {[%clk 0:00:40]} 54. Kc4 {[%clk 0:00:50]}  Rc2+ {[%clk 0:00:40]} 55. Kd5 {[%clk 0:00:27]}  Rd2 {[%clk 0:00:48]} 56. Ke4 {[%clk 0:00:28]}  Re2+ {[%clk 0:00:57]} 57. Kd5 {[%clk 0:00:34]}  Rd2 {[%clk 0:00:45]} 58. Ne5+ {[%clk 0:00:40]}  Ke8 {[%clk 0:00:32]} 59. Nxf3 {[%clk 0:00:48]}  Rb2 {[%clk 0:00:35]} 60. Nxd4 {[%clk 0:00:47]}  Bc7 {[%clk 0:00:35]} 61. Ne6 {[%clk 0:00:52]}  Bg3 {[%clk 0:00:39]} 62. Nxg5 {[%clk 0:00:59]}  Rxb4 {[%clk 0:00:45]} 63. Ne4 {[%clk 0:01:05]}  Bh4 {[%clk 0:00:43]} 64. Ra7 {[%clk 0:01:00]}  Kf8 {[%clk 0:00:45]} 65. Rh7 {[%clk 0:00:54]}  Be7 {[%clk 0:00:47]} 66. h4 {[%clk 0:00:48]}  Rb5+ {[%clk 0:00:55]} 67. Ke6 {[%clk 0:00:47]}  Rb6+ {[%clk 0:01:04]} 68. Kf5 {[%clk 0:00:55]}  Rb5+ {[%clk 0:01:12]} 69. Kf4 {[%clk 0:01:00]}  Rb7 {[%clk 0:01:02]} 70. Kf5 {[%clk 0:00:32]}  Rb5+ {[%clk 0:01:08]} 71. Kg6 {[%clk 0:00:29]}  Rb6+ {[%clk 0:01:10]} 72. Kh5 {[%clk 0:00:34]}  Rb5+ {[%clk 0:00:54]} 73. g5 {[%clk 0:00:40]}  Re5 {[%clk 0:01:03]} 74. Ng3 {[%clk 0:00:41]}  Kg8 {[%clk 0:01:07]} 75. Rh6 {[%clk 0:00:36]}  Kf7 {[%clk 0:00:46]} 76. Ra6 {[%clk 0:00:32]}  Rd5 {[%clk 0:00:54]} 77. Kh6 {[%clk 0:00:30]}  Kg8 {[%clk 0:00:20]} 78. Kg6 {[%clk 0:00:22]}  Bd8 {[%clk 0:00:12]} 79. Nf5 {[%clk 0:00:26]}  Kf8 {[%clk 0:00:18]} 80. Ra7 {[%clk 0:00:32]}  Bb6 {[%clk 0:00:20]} 81. Rf7+ {[%clk 0:00:38]}  Ke8 {[%clk 0:00:29]} 82. h5 {[%clk 0:00:41]}  Rd1 {[%clk 0:00:32]} 83. h6 {[%clk 0:00:48]}  Ba5 {[%clk 0:00:40]} 84. h7 {[%clk 0:00:49]}  Rh1 {[%clk 0:00:46]} 85. Ng7+ {[%clk 0:00:53]} 1-0


[Site "http://www.Chess.com"]

[Event "FIDE World Rapid Chess Championship 2021"]
[White "Shirov, Alexei"]
[Black "Nihal, Sarin"]
[WhiteFideId "2209390"]
[BlackFideId "25092340"]
[WhiteElo "2702"]
[BlackElo "2500"]
[Result "1/2-1/2"]
[Round "01"]
[TimeControl "900+10"]
[Date "2021.12.26"]
[WhiteClock "0:02:53"]
[BlackClock "0:03:07"]

1. e4 {[%clk 0:15:18]}  e5 {[%clk 0:15:19]} 2. Nf3 {[%clk 0:15:27]}  Nc6 {[%clk 0:15:28]} 3. Bb5 {[%clk 0:15:35]}  a6 {[%clk 0:15:37]} 4. Ba4 {[%clk 0:15:44]}  Nf6 {[%clk 0:15:46]} 5. O-O {[%clk 0:15:49]}  Be7 {[%clk 0:15:55]} 6. d3 {[%clk 0:15:56]}  b5 {[%clk 0:16:02]} 7. Bb3 {[%clk 0:16:04]}  d6 {[%clk 0:16:11]} 8. a4 {[%clk 0:16:07]}  Bd7 {[%clk 0:16:19]} 9. Be3 {[%clk 0:15:05]}  O-O {[%clk 0:16:13]} 10. axb5 {[%clk 0:15:11]}  axb5 {[%clk 0:16:21]} 11. Nc3 {[%clk 0:15:19]}  Na5 {[%clk 0:15:22]} 12. Nd5 {[%clk 0:15:11]}  Nxd5 {[%clk 0:15:28]} 13. Bxd5 {[%clk 0:15:19]}  c6 {[%clk 0:15:37]} 14. Ba2 {[%clk 0:15:26]}  c5 {[%clk 0:15:23]} 15. Bd5 {[%clk 0:15:15]}  Nc6 {[%clk 0:15:32]} 16. c3 {[%clk 0:12:09]}  Rxa1 {[%clk 0:12:44]} 17. Qxa1 {[%clk 0:12:17]}  Qa8 {[%clk 0:12:26]} 18. Ng5 {[%clk 0:08:22]}  Bxg5 {[%clk 0:11:40]} 19. Bxg5 {[%clk 0:08:27]}  Qc8 {[%clk 0:11:50]} 20. Qa2 {[%clk 0:06:40]}  h6 {[%clk 0:11:53]} 21. Be3 {[%clk 0:06:40]}  Be6 {[%clk 0:11:11]} 22. f4 {[%clk 0:05:24]}  exf4 {[%clk 0:10:19]} 23. Bxf4 {[%clk 0:05:32]}  Qd7 {[%clk 0:07:21]} 24. Ra1 {[%clk 0:02:48]}  Rd8 {[%clk 0:02:45]} 25. Bxc6 {[%clk 0:02:32]}  Qxc6 {[%clk 0:02:50]} 26. Qa6 {[%clk 0:02:41]}  Qxa6 {[%clk 0:02:51]} 27. Rxa6 {[%clk 0:02:49]}  d5 {[%clk 0:03:00]} 28. Rd6 {[%clk 0:02:45]}  Rxd6 {[%clk 0:03:07]} 29. Bxd6 {[%clk 0:02:53]} 1/2-1/2


[Site "http://www.Chess.com"]

[Event "FIDE World Rapid Chess Championship 2021"]
[White "Socko, Bartosz"]
[Black "Tologontegin, Semetey"]
[WhiteFideId "1107038"]
[BlackFideId "13800574"]
[WhiteElo "2562"]
[BlackElo "2300"]
[Result "1-0"]
[Round "01"]
[TimeControl "900+10"]
[Date "2021.12.26"]
[WhiteClock "0:00:00"]
[BlackClock "0:00:00"]

1. d4 {[%clk 0:00:00]}  g6 {[%clk 0:00:00]} 2. c4 {[%clk 0:00:00]}  Bg7 {[%clk 0:00:00]} 3. Nc3 {[%clk 0:00:00]}  d6 {[%clk 0:00:00]} 4. e4 {[%clk 0:00:00]}  e5 {[%clk 0:00:00]} 5. Be3 {[%clk 0:00:00]}  Nc6 {[%clk 0:00:00]} 6. Nge2 {[%clk 0:00:00]}  Bd7 {[%clk 0:00:00]} 7. f3 {[%clk 0:00:00]}  Nf6 {[%clk 0:00:00]} 8. d5 {[%clk 0:00:00]}  Ne7 {[%clk 0:00:00]} 9. Qd2 {[%clk 0:00:00]}  O-O {[%clk 0:00:00]} 10. g4 {[%clk 0:00:00]}  Ne8 {[%clk 0:00:00]} 11. O-O-O {[%clk 0:00:00]}  f5 {[%clk 0:00:00]} 12. g5 {[%clk 0:00:00]}  f4 {[%clk 0:00:00]} 13. Bf2 {[%clk 0:00:00]}  h5 {[%clk 0:00:00]} 14. gxh6 {[%clk 0:00:00]}  Bxh6 {[%clk 0:00:00]} 15. h4 {[%clk 0:00:00]}  Nf6 {[%clk 0:00:00]} 16. Bh3 {[%clk 0:00:00]}  Bxh3 {[%clk 0:00:00]} 17. Rxh3 {[%clk 0:00:00]}  Kh7 {[%clk 0:00:00]} 18. Rh2 {[%clk 0:00:00]}  Rg8 {[%clk 0:00:00]} 19. Kb1 {[%clk 0:00:00]}  Qd7 {[%clk 0:00:00]} 20. c5 {[%clk 0:00:00]}  Nc8 {[%clk 0:00:00]} 21. Nc1 {[%clk 0:00:00]}  Nh5 {[%clk 0:00:00]} 22. Nd3 {[%clk 0:00:00]}  Rg7 {[%clk 0:00:00]} 23. Rc1 {[%clk 0:00:00]}  Ne7 {[%clk 0:00:00]} 24. Qc2 {[%clk 0:00:00]}  Ng8 {[%clk 0:00:00]} 25. Qb3 {[%clk 0:00:00]}  c6 {[%clk 0:00:00]} 26. cxd6 {[%clk 0:00:00]}  Qxd6 {[%clk 0:00:00]} 27. Nc5 {[%clk 0:00:00]}  b6 {[%clk 0:00:00]} 28. Ne6 {[%clk 0:00:00]}  Re7 {[%clk 0:00:00]} 29. Rg2 {[%clk 0:00:00]}  cxd5 {[%clk 0:00:00]} 30. exd5 {[%clk 0:00:00]}  Ngf6 {[%clk 0:00:00]} 31. Ng5+ {[%clk 0:00:00]}  Bxg5 {[%clk 0:00:00]} 32. hxg5 {[%clk 0:00:00]}  Ne8 {[%clk 0:00:00]} 33. Ne4 {[%clk 0:00:00]}  Qd7 {[%clk 0:00:00]} 34. Rh1 {[%clk 0:00:00]}  Kg7 {[%clk 0:00:00]} 35. Be1 {[%clk 0:00:00]}  Qf5 {[%clk 0:00:00]} 36. Ka1 {[%clk 0:00:00]}  Rd7 {[%clk 0:00:00]} 37. Bc3 {[%clk 0:00:00]}  Rad8 {[%clk 0:00:00]} 38. Rd1 {[%clk 0:00:00]}  Kh7 {[%clk 0:00:00]} 39. Rh2 {[%clk 0:00:00]}  Kg7 {[%clk 0:00:00]} 40. a3 {[%clk 0:00:00]}  Nd6 {[%clk 0:00:00]} 41. Nxd6 {[%clk 0:00:00]}  Rxd6 {[%clk 0:00:00]} 42. Re2 {[%clk 0:00:00]}  Re8 {[%clk 0:00:00]} 43. Rde1 {[%clk 0:00:00]}  Kh7 {[%clk 0:00:00]} 44. Rxe5 {[%clk 0:00:00]}  Rxe5 {[%clk 0:00:00]} 45. Rxe5 {[%clk 0:00:00]}  Qf7 {[%clk 0:00:00]} 46. Qc4 {[%clk 0:00:00]}  Ng7 {[%clk 0:00:00]} 47. Qe4 {[%clk 0:00:00]}  Rd7 {[%clk 0:00:00]} 48. Kb1 {[%clk 0:00:00]}  Rc7 {[%clk 0:00:00]} 49. Qd4 {[%clk 0:00:00]}  b5 {[%clk 0:00:00]} 50. d6 {[%clk 0:00:00]}  Nf5 {[%clk 0:00:00]} 51. dxc7 {[%clk 0:00:00]}  Nxd4 {[%clk 0:00:00]} 52. c8=Q {[%clk 0:00:00]} 1-0


[Site "http://www.Chess.com"]

[Event "FIDE World Rapid Chess Championship 2021"]
[White "Gajewski, Grzegorz"]
[Black "Sargissian, Gabriel"]
[WhiteFideId "1116207"]
[BlackFideId "13300881"]
[WhiteElo "2496"]
[BlackElo "2693"]
[Result "1/2-1/2"]
[Round "01"]
[TimeControl "900+10"]
[Date "2021.12.26"]
[WhiteClock "0:01:35"]
[BlackClock "0:00:56"]

1. e4 {[%clk 0:15:18]}  e5 {[%clk 0:15:16]} 2. Nf3 {[%clk 0:15:26]}  Nc6 {[%clk 0:15:18]} 3. Bb5 {[%clk 0:15:34]}  a6 {[%clk 0:15:25]} 4. Ba4 {[%clk 0:15:42]}  Nf6 {[%clk 0:15:32]} 5. O-O {[%clk 0:15:48]}  Be7 {[%clk 0:15:37]} 6. Re1 {[%clk 0:15:55]}  b5 {[%clk 0:15:43]} 7. Bb3 {[%clk 0:16:03]}  O-O {[%clk 0:15:49]} 8. a4 {[%clk 0:16:10]}  Bb7 {[%clk 0:14:55]} 9. d3 {[%clk 0:16:13]}  d6 {[%clk 0:14:53]} 10. h3 {[%clk 0:16:16]}  Na5 {[%clk 0:14:05]} 11. Ba2 {[%clk 0:16:24]}  c5 {[%clk 0:14:12]} 12. Nbd2 {[%clk 0:16:32]}  Nc6 {[%clk 0:13:22]} 13. Nf1 {[%clk 0:15:38]}  d5 {[%clk 0:12:59]} 14. exd5 {[%clk 0:15:22]}  Nxd5 {[%clk 0:12:50]} 15. c3 {[%clk 0:14:30]}  b4 {[%clk 0:12:08]} 16. Ne3 {[%clk 0:10:17]}  Nf4 {[%clk 0:11:34]} 17. d4 {[%clk 0:09:18]}  bxc3 {[%clk 0:08:02]} 18. bxc3 {[%clk 0:09:25]}  cxd4 {[%clk 0:08:01]} 19. Nf5 {[%clk 0:08:44]}  Bf6 {[%clk 0:05:06]} 20. cxd4 {[%clk 0:04:27]}  Nb4 {[%clk 0:01:43]} 21. Bb1 {[%clk 0:02:02]}  Ng6 {[%clk 0:01:19]} 22. Qb3 {[%clk 0:01:17]}  Bxf3 {[%clk 0:01:05]} 23. Qxb4 {[%clk 0:01:25]}  Rb8 {[%clk 0:00:53]} 24. Qd2 {[%clk 0:00:28]}  Ba8 {[%clk 0:00:44]} 25. Ba3 {[%clk 0:00:35]}  Re8 {[%clk 0:00:38]} 26. Ba2 {[%clk 0:00:43]}  Bg5 {[%clk 0:00:21]} 27. Qc2 {[%clk 0:00:32]}  Bd5 {[%clk 0:00:14]} 28. Nd6 {[%clk 0:00:33]}  Bxa2 {[%clk 0:00:23]} 29. Qxa2 {[%clk 0:00:42]}  Re6 {[%clk 0:00:27]} 30. dxe5 {[%clk 0:00:50]}  Bf4 {[%clk 0:00:30]} 31. Rad1 {[%clk 0:00:54]}  Qc7 {[%clk 0:00:28]} 32. Nc4 {[%clk 0:00:27]}  Rc8 {[%clk 0:00:23]} 33. g3 {[%clk 0:00:33]}  Bxe5 {[%clk 0:00:17]} 34. Rc1 {[%clk 0:00:39]}  Rc6 {[%clk 0:00:15]} 35. Ne3 {[%clk 0:00:17]}  Rxc1 {[%clk 0:00:15]} 36. Rxc1 {[%clk 0:00:26]}  Qd8 {[%clk 0:00:24]} 37. Rxc8 {[%clk 0:00:31]}  Qxc8 {[%clk 0:00:33]} 38. Qd5 {[%clk 0:00:36]}  h6 {[%clk 0:00:26]} 39. Kg2 {[%clk 0:00:40]}  Bf6 {[%clk 0:00:27]} 40. Nf5 {[%clk 0:00:47]}  Qe6 {[%clk 0:00:28]} 41. Qxe6 {[%clk 0:00:21]}  fxe6 {[%clk 0:00:37]} 42. Nd6 {[%clk 0:00:30]}  Ne5 {[%clk 0:00:37]} 43. Ne4 {[%clk 0:00:15]}  Nc4 {[%clk 0:00:29]} 44. Nxf6+ {[%clk 0:00:22]}  gxf6 {[%clk 0:00:39]} 45. Bc1 {[%clk 0:00:31]}  h5 {[%clk 0:00:42]} 46. Kf3 {[%clk 0:00:33]}  Nb6 {[%clk 0:00:49]} 47. Bb2 {[%clk 0:00:42]}  Kf7 {[%clk 0:00:40]} 48. a5 {[%clk 0:00:51]}  Nc4 {[%clk 0:00:48]} 49. Bc3 {[%clk 0:01:01]}  e5 {[%clk 0:00:53]} 50. h4 {[%clk 0:00:58]}  f5 {[%clk 0:00:55]} 51. Ke2 {[%clk 0:01:07]}  Ke6 {[%clk 0:01:03]} 52. f3 {[%clk 0:01:11]}  e4 {[%clk 0:00:55]} 53. Kf2 {[%clk 0:01:19]}  Ne5 {[%clk 0:00:31]} 54. Bxe5 {[%clk 0:00:55]}  Kxe5 {[%clk 0:00:40]} 55. Ke3 {[%clk 0:01:03]}  exf3 {[%clk 0:00:19]} 56. Kxf3 {[%clk 0:01:12]}  Ke6 {[%clk 0:00:28]} 57. Kf4 {[%clk 0:01:17]}  Kf6 {[%clk 0:00:37]} 58. Kf3 {[%clk 0:01:26]}  Ke6 {[%clk 0:00:46]} 59. Kf4 {[%clk 0:01:35]}  Kf6 {[%clk 0:00:56]} 1/2-1/2


[Site "http://www.Chess.com"]

[Event "FIDE World Rapid Chess Championship 2021"]
[White "Kanarek, Marcel"]
[Black "Corrales Jimenez, Fidel"]
[WhiteFideId "1126822"]
[BlackFideId "3506690"]
[WhiteElo "2296"]
[BlackElo "2561"]
[Result "0-1"]
[Round "01"]
[TimeControl "900+10"]
[Date "2021.12.26"]
[WhiteClock "0:00:15"]
[BlackClock "0:01:42"]

1. e4 {[%clk 0:15:18]}  c5 {[%clk 0:15:16]} 2. Nf3 {[%clk 0:15:25]}  d6 {[%clk 0:15:24]} 3. d4 {[%clk 0:15:34]}  cxd4 {[%clk 0:15:32]} 4. Nxd4 {[%clk 0:15:42]}  Nf6 {[%clk 0:15:40]} 5. Nc3 {[%clk 0:15:50]}  a6 {[%clk 0:15:48]} 6. a4 {[%clk 0:15:55]}  e5 {[%clk 0:15:51]} 7. Nf3 {[%clk 0:16:02]}  Be7 {[%clk 0:15:14]} 8. Bg5 {[%clk 0:15:13]}  O-O {[%clk 0:14:58]} 9. Bxf6 {[%clk 0:14:46]}  Bxf6 {[%clk 0:15:06]} 10. Bc4 {[%clk 0:14:30]}  Nc6 {[%clk 0:14:49]} 11. Nd5 {[%clk 0:13:02]}  Be6 {[%clk 0:14:15]} 12. O-O {[%clk 0:12:59]}  Bg5 {[%clk 0:14:06]} 13. c3 {[%clk 0:12:12]}  Kh8 {[%clk 0:14:08]} 14. Re1 {[%clk 0:09:08]}  Bh6 {[%clk 0:14:16]} 15. h3 {[%clk 0:08:38]}  Rc8 {[%clk 0:14:21]} 16. Ba2 {[%clk 0:08:07]}  g6 {[%clk 0:12:44]} 17. b4 {[%clk 0:07:11]}  a5 {[%clk 0:11:40]} 18. Qd3 {[%clk 0:06:34]}  f5 {[%clk 0:09:46]} 19. b5 {[%clk 0:04:43]}  Nb8 {[%clk 0:09:11]} 20. Nb6 {[%clk 0:04:06]}  fxe4 {[%clk 0:09:16]} 21. Rxe4 {[%clk 0:03:58]}  Qxb6 {[%clk 0:06:42]} 22. Bxe6 {[%clk 0:04:06]}  Rce8 {[%clk 0:06:50]} 23. Bg4 {[%clk 0:03:10]}  Rd8 {[%clk 0:05:07]} 24. c4 {[%clk 0:03:13]}  Nd7 {[%clk 0:05:08]} 25. Bxd7 {[%clk 0:03:06]}  Rxd7 {[%clk 0:05:17]} 26. Rd1 {[%clk 0:02:34]}  Rdd8 {[%clk 0:03:33]} 27. Qd5 {[%clk 0:02:23]}  Qc7 {[%clk 0:03:13]} 28. Rd3 {[%clk 0:01:48]}  Kg7 {[%clk 0:01:59]} 29. Ne1 {[%clk 0:01:20]}  Bg5 {[%clk 0:01:23]} 30. Nf3 {[%clk 0:01:02]}  Be7 {[%clk 0:01:32]} 31. h4 {[%clk 0:00:55]}  Rf5 {[%clk 0:01:36]} 32. g3 {[%clk 0:00:27]}  Rdf8 {[%clk 0:01:43]} 33. Kg2 {[%clk 0:00:34]}  b6 {[%clk 0:01:51]} 34. Re2 {[%clk 0:00:35]}  Rc8 {[%clk 0:01:32]} 35. Nd2 {[%clk 0:00:38]}  Rd8 {[%clk 0:01:30]} 36. Ne4 {[%clk 0:00:44]}  Qc8 {[%clk 0:01:39]} 37. Nc3 {[%clk 0:00:41]}  Rdf8 {[%clk 0:01:31]} 38. Qc6 {[%clk 0:00:44]}  Qe6 {[%clk 0:01:08]} 39. Nd5 {[%clk 0:00:37]}  Qf7 {[%clk 0:00:56]} 40. Qxb6 {[%clk 0:00:39]}  Bd8 {[%clk 0:01:01]} 41. Qe3 {[%clk 0:00:45]}  e4 {[%clk 0:01:10]} 42. Rdd2 {[%clk 0:00:41]}  g5 {[%clk 0:01:17]} 43. Qd4+ {[%clk 0:00:26]}  Re5 {[%clk 0:01:18]} 44. hxg5 {[%clk 0:00:14]}  Bxg5 {[%clk 0:01:27]} 45. Rc2 {[%clk 0:00:20]}  Kg8 {[%clk 0:01:19]} 46. Kg1 {[%clk 0:00:18]}  Qf3 {[%clk 0:01:26]} 47. Ne3 {[%clk 0:00:21]}  Bf6 {[%clk 0:01:24]} 48. Qxd6 {[%clk 0:00:25]}  Rd8 {[%clk 0:01:29]} 49. Qb6 {[%clk 0:00:11]}  Rh5 {[%clk 0:01:34]} 50. Qe6+ {[%clk 0:00:15]}  Kh8 {[%clk 0:01:42]} 0-1


[Site "http://www.Chess.com"]

[Event "FIDE World Rapid Chess Championship 2021"]
[White "Fedoseev, Vladimir"]
[Black "Nguyen, Thai Dai Van"]
[WhiteFideId "24130737"]
[BlackFideId "358878"]
[WhiteElo "2692"]
[BlackElo "2488"]
[Result "1/2-1/2"]
[Round "01"]
[TimeControl "900+10"]
[Date "2021.12.26"]
[WhiteClock "0:12:50"]
[BlackClock "0:10:52"]

1. Nf3 {[%clk 0:15:18]}  d5 {[%clk 0:15:19]} 2. g3 {[%clk 0:15:26]}  Nf6 {[%clk 0:15:24]} 3. Bg2 {[%clk 0:15:35]}  e6 {[%clk 0:15:31]} 4. c4 {[%clk 0:15:43]}  Be7 {[%clk 0:13:20]} 5. O-O {[%clk 0:15:41]}  O-O {[%clk 0:13:27]} 6. d3 {[%clk 0:15:06]}  c5 {[%clk 0:13:00]} 7. cxd5 {[%clk 0:14:53]}  exd5 {[%clk 0:13:05]} 8. d4 {[%clk 0:15:01]}  Nc6 {[%clk 0:12:55]} 9. dxc5 {[%clk 0:12:44]}  Bxc5 {[%clk 0:12:58]} 10. Nbd2 {[%clk 0:12:52]}  Re8 {[%clk 0:10:52]} 11. Nb3 {[%clk 0:12:50]} 1/2-1/2


[Site "http://www.Chess.com"]